bitfinex-derivatives/quotes_BTCF0:USTF0_20250212
["timestamp","ask_amount","ask_price","bid_price","bid_amount"]
[1739392935668,0.01315439,97144.0,97143.0,0.5676721]
[1739392936261,0.01015439,97144.0,97143.0,0.5686721]
[1739392936757,0.04,97168.0,97143.0,0.3628]
[1739392936962,0.2768129,97171.0,97166.0,0.2058226]
[1739392937162,0.2058129,97171.0,97166.0,0.2058226]
[1739392937864,0.3978,97174.0,97157.0,0.077]
[1739392938068,0.3978,97174.0,97170.0,0.2058145]
[1739392938771,0.001,97171.0,97170.0,0.2058145]
[1739392939363,0.61756574,97174.0,97170.0,0.2058145]
[1739392939557,0.61664574,97174.0,97171.0,0.2058127]
[1739392940168,0.2058086,97173.0,97171.0,0.2058127]
[1739392940561,0.41083904,97174.0,97165.0,0.2058238]
[1739392940763,0.40783904,97174.0,97165.0,0.2058238]
[1739392940969,0.003,97171.0,97165.0,0.2058238]
[1739392941361,0.2058214,97167.0,97165.0,0.2058238]
[1739392941660,0.2058214,97167.0,97165.0,0.001]
[1739392941959,0.2058214,97167.0,97166.0,0.2058234]
[1739392942368,0.002,97171.0,97161.0,0.2058339]
[1739392942369,0.2058262,97165.0,97161.0,0.2058339]
[1739392943069,0.007,97171.0,97161.0,0.2058339]
[1739392943270,0.2058234,97166.0,97159.0,1.50067439]
[1739392943474,0.2058234,97166.0,97159.0,1.50015439]
[1739392943864,0.12206108,97170.0,97163.0,0.2058281]
[1739392944068,0.2058256,97165.0,97163.0,0.2058281]
[1739392944964,0.2058256,97165.0,97159.0,1.50367439]
[1739392945164,0.2058256,97165.0,97164.0,0.2058276]
[1739392945362,0.3608,97166.0,97159.0,0.00367439]
[1739392945561,0.0397,97165.0,97159.0,0.00015439]
[1739392945758,0.08,97165.0,97159.0,0.00015439]
[1739392946663,0.205836,97160.0,97159.0,0.00015439]
[1739392948263,0.206836,97160.0,97159.0,0.00015439]
[1739392948962,0.207836,97160.0,97159.0,0.00015439]
[1739392951973,0.217972,97160.0,97159.0,0.00015439]
[1739392953273,0.217972,97160.0,97159.0,1e-08]
[1739392959980,0.20587,97145.0,97144.0,0.2058626]
[1739392960179,0.3608,97149.0,97131.0,0.0401]
[1739392960476,0.205887,97136.0,97132.0,0.0393]
[1739392960680,0.205887,97136.0,97131.0,0.2058975]
[1739392960873,0.205887,97136.0,97131.0,1.5]
[1739392961076,0.205887,97136.0,97131.0,1.50052]
[1739392961375,0.201887,97136.0,97131.0,0.00052]
[1739392961573,0.562687,97136.0,97135.0,0.00554413]
[1739392962675,0.562687,97136.0,97135.0,0.01554413]
[1739392963181,0.57296256,97136.0,97135.0,0.01554413]
[1739392963681,0.57896256,97136.0,97135.0,0.00254413]
[1739392963882,0.58396256,97136.0,97135.0,0.00254413]
[1739392964283,0.57296256,97136.0,97135.0,0.00554413]
[1739392964870,0.57696256,97136.0,97135.0,0.00354413]
[1739392966587,0.57696256,97136.0,97135.0,0.00154413]
[1739392966778,0.57996256,97136.0,97135.0,0.00154413]
[1739392967081,0.205923,97120.0,97119.0,0.2059222]
[1739392967484,0.205923,97119.0,97118.0,0.0747]
[1739392968977,0.3608,97125.0,97108.0,1.5]
[1739392969190,0.5667442,97109.0,97108.0,1.5]
[1739392969582,0.5667442,97109.0,97105.0,0.2059524]
[1739392969583,0.2059506,97106.0,97105.0,0.2059524]
[1739392970482,0.2039506,97106.0,97105.0,0.2059524]
[1739392970682,0.3608,97109.0,97105.0,0.2129524]
[1739392970989,0.3608,97109.0,97105.0,0.2149524]
[1739392971378,0.2059439,97110.0,97105.0,0.2149524]
[1739392971585,0.21610517,97110.0,97105.0,0.2149524]
[1739392972490,0.2059449,97109.0,97105.0,0.2149524]
[1739392972990,0.2059471,97108.0,97105.0,0.2079524]
[1739392973190,0.2059487,97107.0,97105.0,0.2079524]
[1739392973588,0.2059487,97107.0,97105.0,0.2059524]
[1739392973992,0.006,97109.0,97104.0,0.0402]
[1739392974294,0.006,97109.0,97107.0,0.2059466]
[1739392975492,0.006,97109.0,97104.0,0.0402]
[1739392975493,0.006,97107.0,97104.0,0.0402]
[1739392975792,0.006,97107.0,97106.0,0.2059506]
[1739392976086,0.001,97109.0,97108.0,0.2059463]
[1739392976292,0.005,97109.0,97108.0,0.2059463]
[1739392976885,0.2059341,97114.0,97105.0,1.50056]
[1739392977082,0.2059341,97114.0,97104.0,0.0402]
[1739392977289,0.2059341,97114.0,97113.0,0.2059357]
[1739392978792,0.57677384,97117.0,97113.0,0.2059352]
[1739392979194,0.006,97114.0,97113.0,0.2059352]
[1739392979492,0.2119336,97114.0,97113.0,0.2059352]
[1739392979894,0.2059336,97114.0,97113.0,0.2059352]
[1739392980292,0.2069336,97114.0,97113.0,0.2059352]
[1739392980596,0.001,97114.0,97113.0,0.2059352]
[1739392980894,0.001,97114.0,97110.0,0.3608]
[1739392981094,0.001,97114.0,97111.0,0.038]
[1739392981496,0.007,97114.0,97111.0,0.038]
[1739392981797,0.007,97114.0,97113.0,0.2059357]
[1739392982199,0.001,97114.0,97113.0,0.2059357]
[1739392983197,0.001,97114.0,97113.0,0.2079357]
[1739392983494,0.21597424,97117.0,97116.0,0.2059294]
[1739392983697,0.2059279,97117.0,97116.0,0.2059294]
[1739392984699,0.01019557,97126.0,97113.0,0.001]
[1739392984889,0.2059336,97114.0,97113.0,0.001]
[1739392985894,0.2059378,97112.0,97111.0,0.2059394]
[1739392986092,0.2059527,97108.0,97107.0,0.2059477]
[1739392987899,0.2059527,97105.0,97103.0,0.2059569]
[1739392989196,0.2079527,97105.0,97104.0,0.2461548]
[1739392990297,0.002,97105.0,97104.0,0.2461548]
[1739392991297,0.2424316,97115.0,97104.0,0.0402]
[1739392991499,0.2424316,97115.0,97113.0,0.2059349]
[1739392991803,0.04676899,97115.0,97113.0,0.2059349]
[1739392991995,0.2059336,97114.0,97113.0,0.2059349]
[1739392993700,0.2079336,97114.0,97113.0,0.2059349]
[1739392994289,0.002,97114.0,97113.0,0.2059349]
[1739392994495,0.01,97114.0,97113.0,0.2069349]
[1739392994695,0.008,97114.0,97113.0,0.2069349]
[1739392995396,0.002,97114.0,97113.0,0.2059349]
[1739392996102,0.008,97114.0,97113.0,0.2069349]
[1739392996302,0.01,97114.0,97113.0,0.2069349]
[1739392996893,0.008,97114.0,97113.0,0.2069349]
[1739392997501,0.002,97114.0,97113.0,0.2059349]
[1739392997699,0.004,97114.0,97113.0,0.2059349]
[1739392998305,0.002,97114.0,97113.0,0.2059349]
[1739392998498,0.2159336,97114.0,97113.0,0.2069349]
[1739392999108,0.2079336,97114.0,97113.0,0.2059349]
[1739392999410,0.2129336,97114.0,97113.0,0.2059349]
[1739392999607,0.2109336,97114.0,97113.0,0.2059349]
[1739393000708,0.2149336,97114.0,97113.0,0.2069349]
[1739393001305,0.2149336,97114.0,97113.0,0.001]
[1739393001604,0.008,97114.0,97104.0,0.2059542]
[1739393001811,0.2059612,97101.0,97100.0,0.4608]
[1739393002505,0.2049612,97101.0,97100.0,0.1]
[1739393004099,0.2049612,97101.0,97100.0,0.101]
[1739393006310,0.2049612,97101.0,97080.0,0.43017638]
[1739393006311,0.2060036,97081.0,97080.0,0.43017638]
[1739393006503,0.9276036,97081.0,97080.0,0.43017638]
[1739393006809,0.2060104,97078.0,97062.0,0.0368]
[1739393007208,0.2060104,97078.0,97077.0,0.2060121]
[1739393008699,0.2130104,97078.0,97077.0,0.2070121]
[1739393008902,0.22348314,97078.0,97077.0,0.2070121]
[1739393009111,0.01747274,97078.0,97077.0,0.2070121]
[1739393009309,0.01747274,97078.0,97077.0,0.2060121]
[1739393009513,0.01847274,97078.0,97077.0,0.2070121]
[1739393010014,0.02047274,97078.0,97077.0,0.2070121]
[1739393010608,0.01847274,97078.0,97077.0,0.2070121]
[1739393011011,0.01147274,97078.0,97077.0,0.2060121]
[1739393011714,0.2059866,97089.0,97076.0,0.0381]
[1739393011911,0.004,97078.0,97077.0,0.2060121]
[1739393012113,0.004,97078.0,97077.0,1.7060121]
[1739393012510,0.0103506,97089.0,97083.0,0.2059984]
[1739393012711,0.00015448,97090.0,97083.0,0.2059984]
[1739393013111,0.00015448,97090.0,97077.0,1.50052]
[1739393013416,0.00015448,97090.0,97085.0,0.2059948]
[1739393013814,0.00015448,97090.0,97086.0,0.2059927]
[1739393014010,0.00015448,97090.0,97085.0,0.3608]
[1739393014309,0.00015448,97090.0,97089.0,0.2059866]
[1739393014509,0.00215448,97090.0,97089.0,0.2059866]
[1739393015120,0.01015448,97090.0,97089.0,0.2059866]
[1739393015505,0.205945,97109.0,97087.0,0.3608]
[1739393015711,0.205945,97109.0,97100.0,0.5667633]
[1739393015909,0.01182803,97101.0,97100.0,0.5667633]
[1739393016115,0.00154542,97101.0,97100.0,0.5667633]
[1739393016712,0.00254542,97101.0,97100.0,0.5667633]
[1739393017316,0.00154542,97101.0,97100.0,0.5667633]
[1739393017516,0.00154542,97101.0,97100.0,0.2059633]
[1739393018418,0.01199017,97101.0,97100.0,0.2059633]
[1739393018617,0.2059666,97099.0,97095.0,0.2059738]
[1739393018918,0.2059666,97099.0,97096.0,0.2059717]
[1739393020716,0.2059666,97099.0,97091.0,0.00015448]
[1739393020911,0.00154542,97101.0,97097.0,0.3608]
[1739393021116,0.00154542,97101.0,97091.0,0.00015448]
[1739393021117,0.00154542,97101.0,97100.0,0.2059633]
[1739393021312,0.00354542,97101.0,97100.0,0.2059633]
[1739393022018,0.00154542,97101.0,97100.0,0.2059633]
[1739393022818,0.00154542,97101.0,97100.0,0.2079633]
[1739393023423,0.00154542,97101.0,97100.0,1.7079633]
[1739393023926,0.00154542,97101.0,97100.0,0.2099633]
[1739393024316,0.2059445,97109.0,97108.0,0.2059464]
[1739393024512,0.0103498,97110.0,97109.0,0.2059442]
[1739393025822,0.0123498,97110.0,97109.0,0.2059442]
[1739393026615,0.2192919,97110.0,97109.0,0.2059442]
[1739393026823,0.0133498,97110.0,97085.0,0.3608]
[1739393027020,0.2059593,97102.0,97085.0,0.3608]
[1739393027230,0.2059593,97102.0,97097.0,0.3608]
[1739393027423,0.2059504,97107.0,97103.0,0.2059569]
[1739393028333,0.0354,97109.0,97107.0,0.2059484]
[1739393028532,0.0133498,97110.0,97109.0,0.2059442]
[1739393028731,0.0103498,97110.0,97109.0,0.2079442]
[1739393029129,0.00015448,97110.0,97109.0,0.2079442]
[1739393029326,0.00154496,97130.0,97129.0,0.2059018]
[1739393029528,0.01163257,97130.0,97129.0,0.2059018]
[1739393029723,0.00154496,97130.0,97129.0,1.7059018]
[1739393030024,0.00154496,97130.0,97129.0,0.2059018]
[1739393030632,0.21144466,97130.0,97129.0,0.2059018]
[1739393032134,0.21244466,97130.0,97129.0,0.2059018]
[1739393032929,0.00654496,97130.0,97124.0,0.2059115]
[1739393033128,0.00654496,97130.0,97121.0,1.5006]
[1739393033329,0.3608,97124.0,97121.0,1.5006]
[1739393033633,0.3608,97124.0,97121.0,0.0006]
[1739393034027,0.3608,97124.0,97121.0,1.5006]
[1739393034226,0.3608,97124.0,97120.0,0.00015448]
[1739393034432,0.2059464,97108.0,97106.0,0.2059497]
[1739393035323,0.2059464,97108.0,97107.0,0.5667484]
[1739393035524,0.2059464,97108.0,97107.0,0.2059484]
[1739393035734,0.2059464,97108.0,97107.0,0.2109484]
[1739393036231,0.2059382,97112.0,97110.0,0.2059417]
[1739393036430,0.2059382,97112.0,97111.0,0.2059399]
[1739393037134,0.2059457,97109.0,97108.0,0.2059463]
[1739393037334,0.2059544,97105.0,97103.0,0.2059549]
[1739393037635,0.2059544,97105.0,97104.0,0.2059548]
[1739393038234,0.2029544,97105.0,97104.0,0.2059548]
[1739393038838,0.2029544,97105.0,97104.0,0.2139548]
[1739393039426,0.2039544,97105.0,97104.0,0.2139548]
[1739393039737,0.2029544,97105.0,97104.0,0.2139548]
[1739393040249,0.2029544,97105.0,97104.0,0.008]
[1739393040435,0.0348,97111.0,97101.0,0.2059604]
[1739393040626,0.20563709,97105.0,97104.0,0.007]
[1739393041338,0.2059654,97099.0,97098.0,0.00015448]
[1739393041939,0.2059551,97104.0,97098.0,0.00015448]
[1739393042238,0.003,97105.0,97104.0,0.2059548]
[1739393042740,0.004,97105.0,97104.0,0.2059548]
[1739393043131,0.003,97105.0,97104.0,0.2059548]
[1739393043626,0.3608,97106.0,97105.0,0.2059527]
[1739393044638,0.2059421,97110.0,97100.0,0.3608]
[1739393045140,0.2059421,97110.0,97109.0,0.2059442]
[1739393045538,0.01049199,97114.0,97100.0,0.3608]
[1739393045840,0.2059545,97105.0,97103.0,0.2059559]
[1739393046041,0.2059545,97105.0,97104.0,0.2059548]
[1739393046733,0.2059444,97109.0,97100.0,0.3608]
[1739393046941,0.003,97110.0,97109.0,0.2059442]
[1739393047335,0.0348,97111.0,97110.0,0.2059421]
[1739393048344,0.0378,97111.0,97110.0,0.2069421]
[1739393049237,0.003,97111.0,97110.0,0.2069421]
[1739393049740,0.003,97111.0,97110.0,0.5677421]
[1739393049946,0.00154496,97130.0,97110.0,0.3608]
[1739393050141,0.00154496,97130.0,97116.0,0.2059294]
[1739393050451,0.0100569,97119.0,97116.0,0.2059294]
[1739393050637,0.0100569,97119.0,97116.0,1.7059294]
[1739393051342,0.00315448,97117.0,97116.0,1.7059294]
[1739393051646,0.00615448,97117.0,97116.0,1.7069294]
[1739393052237,0.00315448,97117.0,97116.0,1.7069294]
[1739393052542,0.00815448,97117.0,97116.0,1.7069294]
[1739393057648,0.00154496,97130.0,97129.0,0.2059018]
[1739393057951,0.00154496,97130.0,97129.0,0.5667018]
[1739393058243,0.00154496,97130.0,97129.0,2.0667018]
[1739393059350,0.00154496,97130.0,97129.0,2.0677018]
[1739393060043,0.00554496,97130.0,97129.0,2.0687018]
[1739393067553,0.00015448,97139.0,97138.0,0.2058827]
[1739393067760,0.00015448,97139.0,97138.0,0.5666827]
[1739393068958,0.00015448,97139.0,97138.0,0.5676827]
[1739393069749,0.00015448,97139.0,97138.0,0.5686827]
[1739393070360,0.00015448,97139.0,97138.0,0.2078827]
[1739393070856,0.00015448,97139.0,97120.0,0.00015448]
[1739393071157,0.3608,97124.0,97120.0,0.00015448]
[1739393071351,0.2059188,97121.0,97120.0,0.00015448]
[1739393071551,0.2059046,97128.0,97120.0,0.00015448]
[1739393071750,0.205896,97132.0,97127.0,0.3608]
[1739393071951,0.205896,97132.0,97130.0,0.2058989]
[1739393073057,0.01025228,97132.0,97127.0,0.3618]
[1739393073247,0.205904,97128.0,97127.0,0.001]
[1739393074357,0.0339,97130.0,97121.0,0.2059171]
[1739393074564,0.0339,97130.0,97120.0,0.00015448]
[1739393074757,0.2059188,97121.0,97120.0,0.00015448]
[1739393075960,0.2059188,97121.0,97096.0,0.40285806]
[1739393075961,0.2059549,97104.0,97103.0,0.2059566]
[1739393076851,0.3608,97108.0,97097.0,0.2059682]
[1739393077048,0.0341,97107.0,97097.0,0.2059682]
[1739393077253,0.0341,97107.0,97097.0,1.7059682]
[1739393077453,0.2059676,97098.0,97097.0,1.7059682]
[1739393077961,0.2059676,97098.0,97097.0,0.2059682]
[1739393079249,0.2059676,97098.0,97097.0,0.2069682]
[1739393080468,0.21598892,97098.0,97097.0,0.2069682]
[1739393080665,0.01002132,97098.0,97097.0,0.2069682]
[1739393080858,0.2059593,97102.0,97097.0,0.001]
[1739393081057,0.0338,97103.0,97099.0,0.2059651]
[1739393081363,0.04395691,97103.0,97099.0,0.2059651]
[1739393081552,0.2059633,97100.0,97099.0,0.2059651]
[1739393081753,0.2059676,97098.0,97097.0,0.001]
[1739393082265,0.04395691,97103.0,97095.0,0.2059719]
[1739393082464,0.2059718,97096.0,97095.0,0.2059719]
[1739393083158,0.205962,97101.0,97100.0,0.2059609]
[1739393083357,0.0349,97106.0,97105.0,0.2059527]
[1739393085065,0.0359,97106.0,97105.0,0.2059527]
[1739393085273,0.04631987,97106.0,97105.0,0.2059527]
[1739393085661,0.04731987,97106.0,97105.0,0.2059527]
[1739393085862,0.002,97106.0,97105.0,0.2059527]
[1739393090175,0.00015448,97113.0,97105.0,0.2059527]
[1739393090176,0.00015448,97113.0,97112.0,0.2059379]
[1739393090480,0.0635,97136.0,97125.0,0.2059103]
[1739393090670,0.01184889,97126.0,97125.0,0.2059103]
[1739393090873,0.00154499,97126.0,97125.0,0.2059103]
[1739393092575,0.00154499,97126.0,97125.0,0.2069103]
[1739393092987,0.00154499,97126.0,97125.0,0.2079103]
[1739393093588,0.20745319,97126.0,97125.0,0.001]
[1739393093785,0.20745319,97126.0,97125.0,0.002]
[1739393094186,0.00154499,97126.0,97125.0,0.2079103]
[1739393099597,0.00154499,97126.0,97125.0,0.002]
[1739393099900,0.56825319,97126.0,97125.0,0.002]
[1739393104598,0.56825319,97126.0,97125.0,0.2079103]
[1739393105196,0.56825319,97126.0,97125.0,0.2069103]
[1739393105704,0.56825319,97126.0,97125.0,0.2059103]
[1739393105705,0.00154499,97126.0,97125.0,0.2059103]
[1739393106002,0.00154499,97126.0,97125.0,0.2069103]
[1739393106387,0.00154499,97126.0,97125.0,1.7069103]
[1739393106788,0.00154499,97126.0,97125.0,1.7059103]
[1739393106998,0.00154499,97126.0,97125.0,1.7069103]
[1739393108303,0.00154499,97126.0,97125.0,1.7129103]
[1739393108494,0.00154499,97126.0,97125.0,1.7139103]
[1739393108694,0.20745319,97126.0,97125.0,0.2139103]
[1739393108900,0.00154499,97126.0,97125.0,0.2139103]
[1739393109202,0.00154499,97126.0,97125.0,0.2069103]
[1739393110199,0.0102538,97135.0,97125.0,1.501]
[1739393110398,0.0102538,97135.0,97134.0,0.2058912]
[1739393110993,0.00015448,97135.0,97134.0,0.2058912]
[1739393112407,0.2028943,97133.0,97129.0,0.2059015]
[1739393112702,0.1988943,97133.0,97129.0,0.2059015]
[1739393112910,0.00015448,97135.0,97133.0,0.2058926]
[1739393113099,0.00015448,97135.0,97134.0,0.01]
[1739393113406,0.20604358,97135.0,97134.0,0.01]
[1739393114306,0.56684358,97135.0,97134.0,0.01]
[1739393114504,0.36095448,97135.0,97114.0,0.36916862]
[1739393114707,0.5667124,97124.0,97122.0,0.36916862]
[1739393115599,0.2059273,97117.0,97093.0,0.0348]
[1739393115805,0.3608,97117.0,97093.0,0.0348]
[1739393115999,0.3608,97094.0,97093.0,0.0348]
[1739393116201,0.2059782,97093.0,97091.0,0.0336]
[1739393116399,0.3608,97094.0,97089.0,0.0323]
[1739393116810,0.3608,97094.0,97089.0,0.2382855]
[1739393117211,0.2059788,97093.0,97089.0,0.2382855]
[1739393117413,0.2059788,97093.0,97092.0,0.2059803]
[1739393117913,0.3608,97094.0,97092.0,0.2059803]
[1739393118709,0.00015448,97101.0,97093.0,0.3608]
[1739393119208,0.00015448,97101.0,97098.0,0.2059669]
[1739393119409,0.00015448,97101.0,97099.0,0.0347]
[1739393119811,0.00015448,97101.0,97099.0,0.240665]
[1739393121412,0.00215448,97101.0,97099.0,0.240665]
[1739393121714,0.2059633,97100.0,97099.0,0.0347]
[1739393122919,0.2069633,97100.0,97099.0,0.0347]
[1739393124017,0.001,97100.0,97099.0,0.0347]
[1739393124318,0.003,97100.0,97099.0,0.0347]
[1739393124515,0.003,97100.0,97099.0,0.2406654]
[1739393125217,0.003,97100.0,97099.0,1.7406654]
[1739393128819,0.003,97100.0,97099.0,2.1014654]
[1739393130216,0.00015448,97101.0,97099.0,1.8955]
[1739393130421,0.2059245,97119.0,97105.0,0.051488]
[1739393130725,0.2059245,97119.0,97116.0,0.205928]
[1739393131023,0.2059273,97117.0,97116.0,0.205928]
[1739393131520,0.40595434,97125.0,97109.0,0.2059426]
[1739393131721,0.2059399,97112.0,97109.0,0.2059426]
[1739393131923,0.205941,97111.0,97109.0,0.2059426]
[1739393132314,0.204941,97111.0,97109.0,0.2059426]
[1739393132623,0.204941,97111.0,97110.0,0.2059421]
[1739393133019,0.3608,97114.0,97107.0,0.00015448]
[1739393133522,0.3608,97114.0,97113.0,0.2059358]
[1739393134221,0.40891434,97125.0,97107.0,0.00015448]
[1739393134222,0.25102564,97125.0,97121.0,0.2059187]
[1739393134421,0.24974564,97125.0,97121.0,0.2059187]
[1739393135227,0.2059239,97119.0,97114.0,0.2059321]
[1739393135410,0.2059239,97119.0,97115.0,1.5160947]
[1739393135615,0.2059239,97119.0,97115.0,1.7059314]
[1739393135816,0.2059239,97119.0,97116.0,0.01609436]
[1739393136111,0.2051439,97119.0,97115.0,1.50052]
[1739393136316,0.62282664,97125.0,97110.0,0.3608]
[1739393136524,0.62154664,97125.0,97119.0,0.2059225]
[1739393136720,0.62154664,97125.0,97121.0,0.2059182]
[1739393136920,0.61454664,97125.0,97121.0,0.2059182]
[1739393137124,0.61054664,97125.0,97122.0,0.2059163]
[1739393137926,0.62554664,97125.0,97122.0,0.2059163]
[1739393138423,0.41963434,97125.0,97124.0,0.2059124]
[1739393139026,0.38593434,97125.0,97124.0,0.2059124]
[1739393139826,0.37693434,97125.0,97124.0,0.2059124]
[1739393140023,0.3748,97125.0,97124.0,0.2069124]
[1739393140229,0.3748,97125.0,97124.0,0.22400592]
[1739393140421,0.014,97125.0,97124.0,0.22400592]
[1739393140621,0.014,97125.0,97124.0,1.72400592]
[1739393141218,0.2058834,97138.0,97124.0,1.51809352]
[1739393141425,0.2058834,97138.0,97134.0,0.2058908]
[1739393141620,0.00128,97142.0,97128.0,0.12206108]
[1739393141821,0.2058727,97143.0,97140.0,0.2058781]
[1739393142023,0.21614173,97143.0,97140.0,0.2058781]
[1739393142623,0.01026903,97143.0,97139.0,0.3608]
[1739393142820,0.2058614,97149.0,97140.0,0.01609021]
[1739393143022,0.00015448,97151.0,97144.0,0.2058701]
[1739393143724,0.00015448,97151.0,97144.0,1.7058701]
[1739393143929,0.0116396,97145.0,97144.0,1.7058701]
[1739393144120,0.00154467,97145.0,97144.0,1.5]
[1739393144425,0.00154467,97145.0,97144.0,0.001]
[1739393144426,0.00254467,97145.0,97144.0,0.001]
[1739393144632,0.56921257,97145.0,97144.0,0.001]
[1739393144825,0.00254467,97145.0,97144.0,0.20787]
[1739393145431,0.00254467,97145.0,97144.0,1.70787]
[1739393147033,0.001,97145.0,97144.0,1.70787]
[1739393147421,0.2068679,97145.0,97144.0,0.002]
[1739393148825,0.2068679,97145.0,97144.0,0.001]
[1739393150431,0.2058801,97140.0,97138.0,0.2058822]
[1739393150730,0.2058801,97140.0,97139.0,0.2058806]
[1739393151528,0.3608,97140.0,97133.0,1.50052]
[1739393151734,0.2058912,97134.0,97133.0,1.5]
[1739393152431,0.5656912,97134.0,97133.0,1.5]
[1739393153333,0.57613246,97134.0,97133.0,1.5]
[1739393153631,0.37224126,97134.0,97127.0,0.2059057]
[1739393153832,0.2059039,97128.0,97127.0,0.2059057]
[1739393154030,0.2059039,97128.0,97127.0,1.7059057]
[1739393155728,0.2059039,97128.0,97127.0,1.5]
[1739393156334,0.2089039,97128.0,97127.0,1.5]
[1739393156630,0.003,97128.0,97123.0,0.2059141]
[1739393156837,0.5667124,97124.0,97123.0,0.2059141]
[1739393157238,0.5667124,97124.0,97123.0,1.7059141]
[1739393158541,0.002,97128.0,97127.0,0.205906]
[1739393158842,0.2058949,97133.0,97132.0,0.2058954]
[1739393159133,0.3608,97134.0,97124.0,0.0514781]
[1739393159333,0.21606069,97144.0,97143.0,0.20587]
[1739393159532,0.2058714,97144.0,97143.0,0.20587]
[1739393159732,0.2058714,97144.0,97143.0,1.70587]
[1739393159934,0.2058714,97144.0,97143.0,0.20587]
[1739393161040,0.21616246,97144.0,97143.0,0.20587]
[1739393161538,0.01029106,97144.0,97143.0,0.20587]
[1739393161744,0.034,97150.0,97140.0,0.3608]
[1739393161942,0.034,97150.0,97149.0,0.2058594]
[1739393162441,0.00015448,97151.0,97149.0,0.5666594]
[1739393162945,0.002,97150.0,97149.0,0.5666594]
[1739393164330,0.00215448,97151.0,97149.0,0.5666594]
[1739393164933,0.00215448,97151.0,97150.0,0.0331]
[1739393165139,0.00015448,97151.0,97150.0,0.0331]
[1739393165341,0.00015448,97151.0,97150.0,0.04918882]
[1739393166041,0.00015448,97151.0,97150.0,0.0331]
[1739393166241,0.00015448,97151.0,97150.0,0.04918843]
[1739393166441,0.00215448,97151.0,97150.0,0.04918843]
[1739393167542,0.00215448,97151.0,97150.0,0.25504573]
[1739393167943,0.00015448,97151.0,97150.0,0.25504573]
[1739393168135,0.00215448,97151.0,97150.0,0.25504573]
[1739393169041,0.00215448,97151.0,97150.0,0.22194573]
[1739393169738,0.36295448,97151.0,97140.0,0.20603088]
[1739393169938,0.2058764,97141.0,97140.0,0.00015448]
[1739393170140,0.18706108,97150.0,97140.0,0.01624547]
[1739393170344,0.2058658,97146.0,97141.0,0.2058743]
[1739393170544,0.2058683,97145.0,97141.0,0.2058743]
[1739393171346,0.2058579,97150.0,97149.0,0.2058594]
[1739393172146,0.01045661,97151.0,97141.0,0.003]
[1739393172147,0.00015448,97151.0,97141.0,0.003]
[1739393172447,0.00015448,97151.0,97150.0,0.2058573]
[1739393173139,0.00015448,97151.0,97150.0,0.22194618]
[1739393174146,0.00015448,97151.0,97150.0,1.72194618]
[1739393174333,0.00015448,97151.0,97150.0,1.72194495]
[1739393174539,0.00215448,97151.0,97150.0,1.72194495]
[1739393175537,0.00415448,97151.0,97150.0,1.72194495]
[1739393176138,0.00215448,97151.0,97150.0,1.72194495]
[1739393176346,0.00415448,97151.0,97150.0,2.08274495]
[1739393176643,0.2058075,97174.0,97166.0,0.2058234]
[1739393176948,0.2058075,97174.0,97166.0,0.22191105]
[1739393177349,0.01036309,97168.0,97166.0,0.22191105]
[1739393177749,0.2058075,97174.0,97166.0,0.22191105]
[1739393177949,0.002,97167.0,97166.0,0.22291105]
[1739393178640,0.004,97167.0,97166.0,0.22391105]
[1739393179142,0.004,97167.0,97166.0,1.51808765]
[1739393179346,0.2098213,97167.0,97166.0,1.502]
[1739393181149,0.5706213,97167.0,97166.0,0.002]
[1739393181653,0.2058615,97148.0,97147.0,0.30782771]
[1739393181854,0.5666615,97148.0,97147.0,0.30782771]
[1739393183053,0.3608,97148.0,97141.0,0.00052]
[1739393183254,0.2058743,97142.0,97141.0,0.2058764]
[1739393183450,0.2058743,97142.0,97141.0,0.22196694]
[1739393183658,0.2058743,97142.0,97141.0,1.72196694]
[1739393183853,0.2058743,97142.0,97141.0,1.7058764]
[1739393184156,0.2058743,97142.0,97141.0,1.51609055]
[1739393184351,0.2058743,97142.0,97141.0,1.5]
[1739393184558,0.2058743,97142.0,97141.0,1.501]
[1739393185448,0.2058743,97142.0,97141.0,0.005]
[1739393185649,0.2068743,97142.0,97141.0,0.004]
[1739393186047,0.2068743,97142.0,97140.0,0.30798219]
[1739393186249,0.2088743,97142.0,97141.0,0.001]
[1739393187263,0.2078743,97142.0,97141.0,0.001]
[1739393187950,0.2068743,97142.0,97140.0,0.00015448]
[1739393188655,0.3608,97141.0,97140.0,0.00015448]
[1739393189452,0.5666764,97141.0,97140.0,0.00015448]
[1739393190049,0.5666764,97141.0,97140.0,0.00115448]
[1739393190651,0.5666764,97141.0,97140.0,0.00015448]
[1739393191254,0.5676764,97141.0,97140.0,0.20703298]
[1739393191853,0.5666764,97141.0,97140.0,1.70603298]
[1739393192059,0.5676764,97141.0,97140.0,1.70603298]
[1739393192660,0.5666764,97141.0,97140.0,1.70603298]
[1739393192864,0.5676764,97141.0,97140.0,1.70603298]
[1739393194459,0.5676764,97141.0,97140.0,0.00015448]
[1739393194958,0.5666764,97141.0,97140.0,0.00015448]
[1739393195157,0.5676764,97141.0,97140.0,0.00115448]
[1739393195368,0.9284764,97141.0,97140.0,0.00115448]
[1739393196765,0.9284764,97141.0,97140.0,0.00215448]
[1739393197566,0.9284764,97141.0,97140.0,0.00115448]
[1739393198065,0.2059124,97124.0,97123.0,0.30782771]
[1739393198267,0.5667124,97124.0,97123.0,0.30782771]
[1739393199062,0.3608,97124.0,97123.0,0.51374221]
[1739393199257,0.3618,97124.0,97123.0,0.51374221]
[1739393199658,0.3618,97124.0,97123.0,0.2059145]
[1739393199859,0.001,97124.0,97123.0,0.2059145]
[1739393200964,0.2059061,97127.0,97126.0,0.205904]
[1739393202074,0.20370749,97127.0,97126.0,0.205904]
[1739393202574,0.20670749,97127.0,97126.0,0.205904]
[1739393202876,0.2059167,97122.0,97121.0,0.51374061]
[1739393203074,0.2059167,97122.0,97121.0,0.2059129]
[1739393203567,0.01313239,97127.0,97120.0,0.0015443]
[1739393203568,0.01313239,97127.0,97126.0,0.2059082]
[1739393203768,0.002,97127.0,97126.0,0.2059082]
[1739393203972,0.003,97127.0,97126.0,0.2059082]
[1739393204660,0.002,97127.0,97126.0,0.2059082]
[1739393204865,0.001,97122.0,97121.0,0.2059188]
[1739393205462,0.001,97127.0,97119.0,0.0514807]
[1739393205775,0.001,97127.0,97126.0,0.2059082]
[1739393208468,0.01030931,97129.0,97128.0,0.205904]
[1739393208668,0.2059019,97129.0,97128.0,0.205904]
[1739393208871,0.2058964,97132.0,97131.0,0.2058955]
[1739393210064,0.2068964,97132.0,97131.0,0.2058955]
[1739393210471,0.001,97132.0,97131.0,0.2058955]